fUSD/lending_fUSD_20250823
["ID","MTS","AMOUNT","RATE_DAILY","PERIOD"]
[380940514,1755909101508,-400.0,0.0001452,2]
[380940515,1755909101518,-768.43,0.0001452,2]
[380940516,1755909101527,-400.0,0.0001452,2]
[380940517,1755909101536,-484.07,0.0001452,2]
[380940518,1755909101546,-739.78,0.0001452,2]
[380940519,1755909101557,-960.56,0.0001452,2]
[380940520,1755909101567,-839.48,0.0001452,2]
[380940521,1755909101578,-411.22,0.0001452,2]
[380940522,1755909101588,-400.0,0.0001452,2]
[380940523,1755909101597,-425.81,0.0001452,2]
[380940524,1755909101608,-654.0,0.0001452,2]
[380940525,1755909101618,-933.74,0.0001452,2]
[380940526,1755909101629,-400.0,0.0001452,2]
[380940527,1755909101640,-652.65,0.0001452,2]
[380940528,1755909101651,-405.49,0.0001452,2]
[380940529,1755909101660,-884.24,0.0001452,2]
[380940530,1755909101671,-520.86,0.0001452,2]
[380940531,1755909101680,-559.08,0.0001452,2]
[380940532,1755909101690,-400.0,0.0001452,2]
[380940533,1755909101699,-429.94,0.0001452,2]
[380940534,1755909101709,-665.36,0.0001452,2]
[380940535,1755909101719,-400.0,0.0001452,2]
[380940536,1755909101728,-400.0,0.0001452,2]
[380940537,1755909101737,-416.81,0.0001452,2]
[380940538,1755909101748,-662.92,0.0001452,2]
[380940539,1755909101762,-400.0,0.0001452,2]
[380940540,1755909101772,-431.94,0.0001452,2]
[380940541,1755909101782,-400.0,0.0001452,2]
[380940542,1755909101792,-400.0,0.0001452,2]
[380940543,1755909101802,-400.0,0.0001452,2]
[380940544,1755909101812,-400.0,0.0001452,2]
[380940545,1755909101822,-400.0,0.0001452,2]
[380940546,1755909101832,-400.0,0.0001452,2]
[380940547,1755909101842,-693.63,0.0001452,2]
[380940548,1755909101851,-455.44,0.0001452,2]
[380940549,1755909101862,-674.56,0.0001452,2]
[380940550,1755909101872,-723.42,0.0001452,2]
[380940551,1755909101882,-987.34,0.0001452,2]
[380940552,1755909101892,-400.0,0.0001452,2]
[380940553,1755909101902,-400.0,0.0001452,2]
[380940554,1755909101912,-652.2,0.0001452,2]
[380940555,1755909101921,-1304.91,0.0001452,2]
[380940556,1755909101931,-494.24,0.0001452,2]
[380940557,1755909101941,-1043.71,0.0001452,2]
[380940558,1755909101950,-400.0,0.0001452,2]
[380940559,1755909101960,-452.99,0.0001452,2]
[380940560,1755909101970,-400.0,0.0001452,2]
[380940561,1755909101979,-400.0,0.0001452,2]
[380940562,1755909101989,-659.86,0.0001452,2]
[380940563,1755909101999,-1121.06,0.0001452,2]
[380940564,1755909102009,-400.0,0.0001452,2]
[380940565,1755909102019,-912.7,0.0001452,2]
[380940566,1755909102029,-400.0,0.0001452,2]
[380940567,1755909102039,-400.0,0.0001452,2]
[380940568,1755909102048,-603.68,0.0001452,2]
[380940569,1755909102058,-792.16,0.0001452,2]
[380940570,1755909102069,-609.49,0.0001452,2]
[380940571,1755909102079,-360.66554131,0.0001452,2]
[380940572,1755909102089,-400.0,0.0001452,2]
[380940573,1755909102100,-792.27,0.0001452,2]
[380940574,1755909102110,-400.0,0.0001452,2]
[380940575,1755909102120,-400.0,0.0001452,2]
[380940576,1755909102130,-400.0,0.0001452,2]
[380940577,1755909102140,-512.54,0.0001452,2]
[380940578,1755909102154,-323.66,0.0001452,2]
[380940579,1755909102164,-426.25,0.0001452,2]
[380940580,1755909102175,-981.73,0.0001452,2]
[380940581,1755909102185,-400.0,0.0001452,2]
[380940582,1755909102198,-466.29,0.0001452,2]
[380940583,1755909102208,-1058.6,0.0001452,2]
[380940584,1755909102218,-400.0,0.0001452,2]
[380940585,1755909102228,-400.0,0.0001452,2]
[380940586,1755909102239,-1201.08,0.0001452,2]
[380940587,1755909102249,-400.0,0.0001452,2]
[380940588,1755909102259,-738.76,0.0001452,2]
[380940589,1755909102271,-825.5,0.0001452,2]
[380940590,1755909102281,-400.0,0.0001452,2]
[380940591,1755909102291,-958.1,0.0001452,2]
[380940592,1755909102300,-1111.07,0.0001452,2]
[380940593,1755909102310,-361.46140951,0.0001452,2]
[380940594,1755909102320,-1368.88,0.0001452,2]
[380940595,1755909102330,-509.27,0.0001452,2]
[380940596,1755909102340,-468.64,0.0001452,2]
[380940597,1755909102350,-593.59,0.0001452,2]
[380940598,1755909102360,-881.56,0.0001452,2]
[380940599,1755909102370,-750.95,0.0001452,2]
[380940600,1755909102380,-401.82,0.0001452,2]
[380940601,1755909102390,-706.36,0.0001452,2]
[380940602,1755909102400,-557.47,0.0001452,2]
[380940603,1755909102410,-728.88,0.0001452,2]
[380940604,1755909102419,-400.0,0.0001452,2]
[380940605,1755909102429,-400.0,0.0001452,2]
[380940606,1755909102439,-240.93682319,0.0001452,2]
[380940607,1755909102449,-952.67,0.0001452,2]
[380940608,1755909102459,-692.7,0.0001452,2]
[380940609,1755909102468,-400.0,0.0001452,2]
[380940610,1755909102478,-400.0,0.0001452,2]
[380940611,1755909102489,-779.31,0.0001452,2]
[380940612,1755909102500,-400.0,0.0001452,2]
[380940613,1755909102510,-1122.02,0.0001452,2]
[380940614,1755909102520,-1582.88,0.0001452,2]
[380940615,1755909102529,-577.4,0.0001452,2]
[380940616,1755909102539,-564.14,0.0001452,2]
[380940617,1755909102549,-786.68,0.0001452,2]
[380940618,1755909102562,-423.32648939,0.0001452,2]
[380940619,1755909102572,-1198.24,0.0001452,2]
[380940620,1755909102582,-400.0,0.0001452,2]
[380940621,1755909102592,-956.63,0.0001452,2]
[380940622,1755909102602,-400.0,0.0001452,2]
[380940623,1755909102612,-673.4,0.0001452,2]
[380940624,1755909102622,-848.19,0.0001452,2]
[380940625,1755909102632,-400.0,0.0001452,2]
[380940626,1755909102642,-548.8,0.0001452,2]
[380940627,1755909102652,-437.85,0.0001452,2]
[380940628,1755909102662,-704.4,0.0001452,2]
[380940629,1755909102672,-507.03,0.0001452,2]
[380940630,1755909102682,-437.95,0.0001452,2]
[380940631,1755909102692,-400.0,0.0001452,2]
[380940632,1755909102702,-1155.73,0.0001452,2]
[380940633,1755909102712,-556.41,0.0001452,2]
[380940634,1755909102722,-818.95,0.0001452,2]
[380940635,1755909102732,-431.52,0.0001452,2]
[380940636,1755909102742,-850.86,0.0001452,2]
[380940637,1755909102752,-400.0,0.0001452,2]
[380940638,1755909102762,-400.0,0.0001452,2]
[380940639,1755909102772,-487.71,0.0001452,2]
[380940640,1755909102782,-400.0,0.0001452,2]
[380940641,1755909102794,-838.37,0.0001452,2]
[380940642,1755909102804,-1159.8,0.0001452,2]
[380940643,1755909102813,-484.71,0.0001452,2]
[380940644,1755909102823,-506.13,0.0001452,2]
[380940645,1755909102832,-430.8,0.0001452,2]
[380940646,1755909102842,-749.94,0.0001452,2]
[380940647,1755909102852,-924.83,0.0001452,2]
[380940648,1755909102862,-1313.72,0.0001452,2]
[380940649,1755909102872,-400.0,0.0001452,2]
[380940650,1755909102883,-400.0,0.0001452,2]
[380940651,1755909102893,-1444.09,0.0001452,2]
[380940652,1755909102903,-400.0,0.0001452,2]
[380940653,1755909102914,-765.27,0.0001452,2]
[380940654,1755909102925,-400.0,0.0001452,2]
[380940655,1755909102935,-400.0,0.0001452,2]
[380940656,1755909102947,-400.0,0.0001452,2]
[380940657,1755909102957,-6099.92,0.0001452,2]
[380940658,1755909102967,-400.0,0.0001452,2]
[380940659,1755909102977,-444.7,0.0001452,2]
[380940660,1755909102986,-400.0,0.0001452,2]
[380940661,1755909102996,-400.0,0.0001452,2]
[380940662,1755909103007,-544.24,0.0001452,2]
[380940663,1755909103016,-993.51,0.0001452,2]
[380940664,1755909103030,-400.0,0.0001452,2]
[380940665,1755909103041,-605.79,0.0001452,2]
[380940666,1755909103052,-400.0,0.0001452,2]
[380940667,1755909103063,-830.79,0.0001452,2]
[380940668,1755909103074,-400.0,0.0001452,2]
[380940669,1755909103084,-1071.62,0.0001452,2]
[380940670,1755909103095,-514.4,0.0001452,2]
[380940671,1755909103105,-662.65,0.0001452,2]
[380940672,1755909103114,-574.14,0.0001452,2]
[380940673,1755909103124,-477.51,0.0001452,2]
[380940674,1755909103134,-1245.75,0.0001452,2]
[380940675,1755909103143,-622.81,0.0001452,2]
[380940676,1755909103153,-757.12,0.0001452,2]
[380940677,1755909103163,-400.0,0.0001452,2]
[380940678,1755909103173,-516.75,0.0001452,2]
[380940679,1755909103182,-468.67,0.0001452,2]
[380940680,1755909103195,-1114.83,0.0001452,2]
[380940681,1755909103206,-400.0,0.0001452,2]
[380940682,1755909103216,-655.72,0.0001452,2]
[380940683,1755909103225,-1549.38,0.0001452,2]
[380940684,1755909103237,-490.46,0.0001452,2]
[380940685,1755909103247,-402.98,0.0001452,2]
[380940686,1755909103257,-400.0,0.0001452,2]
[380940687,1755909103267,-1455.01,0.0001452,2]
[380940688,1755909103277,-400.0,0.0001452,2]
[380940689,1755909103286,-400.0,0.0001452,2]
[380940690,1755909103296,-553.89,0.0001452,2]
[380940691,1755909103306,-400.0,0.0001452,2]
[380940692,1755909103316,-500.59,0.0001452,2]
[380940693,1755909103326,-400.0,0.0001452,2]
[380940694,1755909103336,-958.06,0.0001452,2]
[380940695,1755909103346,-1000.0,0.0001452,2]
[380940696,1755909103356,-400.0,0.0001452,2]
[380940697,1755909103365,-400.0,0.0001452,2]
[380940698,1755909103375,-400.0,0.0001452,2]
[380940699,1755909103384,-400.0,0.0001452,2]
[380940700,1755909103394,-400.0,0.0001452,2]
[380940701,1755909103404,-400.0,0.0001452,2]
[380940702,1755909103413,-765.26,0.0001452,2]
[380940703,1755909103423,-400.0,0.0001452,2]
[380940704,1755909103433,-684.36,0.0001452,2]
[380940705,1755909103443,-1609.25,0.0001452,2]
[380940706,1755909103453,-509.39,0.0001452,2]
[380940707,1755909103462,-748.86,0.0001452,2]
[380940708,1755909103472,-794.68,0.0001452,2]
[380940709,1755909103495,-632.68,0.0001452,2]
[380940710,1755909103507,-400.0,0.0001452,2]
[380940711,1755909103517,-1326.0,0.0001452,2]
[380940712,1755909103527,-654.86,0.0001452,2]
[380940713,1755909103537,-400.0,0.0001452,2]
[380940714,1755909103547,-245.79021325,0.0001452,2]
[380940715,1755909103557,-400.0,0.0001452,2]
[380940716,1755909103566,-754.86,0.0001452,2]
[380940717,1755909103576,-1273.55,0.0001452,2]
[380940718,1755909103586,-535.34,0.0001452,2]
[380940719,1755909103596,-1058.52,0.0001452,2]
[380940720,1755909103606,-584.52,0.0001452,2]
[380940721,1755909103616,-542.29,0.0001452,2]
[380940722,1755909103626,-1513.64,0.0001452,2]
[380940723,1755909103635,-400.0,0.0001452,2]
[380940724,1755909103645,-400.0,0.0001452,2]
[380940725,1755909103655,-619.27,0.0001452,2]
[380940726,1755909103665,-559.29,0.0001452,2]
[380940727,1755909103674,-634.92,0.0001452,2]
[380940728,1755909103684,-675.54,0.0001452,2]
[380940729,1755909103693,-1090.13,0.0001452,2]
[380940730,1755909103703,-400.0,0.0001452,2]
[380940731,1755909103712,-440.2,0.0001452,2]
[380940732,1755909103722,-1041.84,0.0001452,2]
[380940733,1755909103731,-484.32,0.0001452,2]
[380940734,1755909103741,-400.0,0.0001452,2]
[380940735,1755909103750,-400.0,0.0001452,2]
[380940736,1755909103760,-1076.24,0.0001452,2]
[380940737,1755909103771,-1111.63,0.0001452,2]
[380940738,1755909103780,-1066.21,0.0001452,2]
[380940739,1755909103790,-558.61,0.0001452,2]
[380940740,1755909103800,-1929.62,0.0001452,2]
[380940741,1755909103809,-543.28,0.0001452,2]
[380940742,1755909103819,-409.53,0.0001452,2]
[380940743,1755909103828,-400.0,0.0001452,2]
[380940744,1755909103838,-453.31,0.0001452,2]
[380940745,1755909103847,-400.0,0.0001452,2]
[380940746,1755909103857,-656.72,0.0001452,2]
[380940747,1755909103866,-639.7,0.0001452,2]
[380940748,1755909103879,-630.26,0.0001452,2]
[380940749,1755909103888,-691.77,0.0001452,2]
[380940750,1755909103898,-984.96,0.0001452,2]
[380940751,1755909103908,-484.18,0.0001452,2]
[380940752,1755909103917,-854.82,0.0001452,2]
[380940753,1755909103927,-400.0,0.0001452,2]
[380940754,1755909103936,-400.0,0.0001452,2]
[380940755,1755909103946,-900.69,0.0001452,2]
[380940756,1755909103956,-400.0,0.0001452,2]
[380940757,1755909103966,-400.0,0.0001452,2]
[380940758,1755909103976,-849.76,0.0001452,2]
[380940759,1755909103985,-440.43,0.0001452,2]
[380940760,1755909103995,-463.91,0.0001452,2]
[380940761,1755909104006,-400.0,0.0001452,2]
[380940762,1755909104018,-548.44,0.0001452,2]
[380940763,1755909104028,-734.69,0.0001452,2]
[380940764,1755909104038,-400.0,0.0001452,2]
[380940765,1755909104049,-633.7,0.0001452,2]
[380940766,1755909104058,-774.74,0.0001452,2]
[380940767,1755909104068,-1283.05,0.0001452,2]
[380940768,1755909104078,-400.0,0.0001452,2]
[380940769,1755909104088,-684.33,0.0001452,2]
[380940770,1755909104098,-554.16,0.0001452,2]
[380940771,1755909104111,-400.0,0.0001452,2]
[380940772,1755909104121,-923.64,0.0001452,2]
[380940773,1755909104130,-831.09,0.0001452,2]
[380940774,1755909104561,-724.59,0.0001452,2]
[380940775,1755909104571,-515.8,0.0001452,2]
[380940776,1755909104580,-1301.68,0.0001452,2]
[380940777,1755909104590,-618.62,0.0001452,2]
[380940778,1755909104599,-400.0,0.0001452,2]
[380940779,1755909104608,-1002.03,0.0001452,2]
[380940780,1755909104618,-400.0,0.0001452,2]
[380940781,1755909104627,-400.0,0.0001452,2]
[380940782,1755909104637,-940.39,0.0001452,2]
[380940783,1755909104646,-400.0,0.0001452,2]
[380940784,1755909104656,-400.0,0.0001452,2]
[380940785,1755909104667,-400.0,0.0001452,2]
[380940786,1755909104676,-400.0,0.0001452,2]
[380940787,1755909104685,-682.02,0.0001452,2]
[380940788,1755909104695,-933.3,0.0001452,2]
[380940789,1755909104704,-466.33,0.0001452,2]
[380940790,1755909104713,-262.32,0.0001452,2]
[380940791,1755909104722,-789.37,0.0001452,2]
[380940792,1755909104731,-400.0,0.0001452,2]
[380940793,1755909104741,-535.1,0.0001452,2]
[380940794,1755909104750,-1243.51,0.0001452,2]
[380940795,1755909104760,-581.93,0.0001452,2]
[380940796,1755909104769,-412.28,0.0001452,2]
[380940797,1755909104778,-828.94,0.0001452,2]
[380940798,1755909104788,-400.0,0.0001452,2]
[380940799,1755909104797,-712.67,0.0001452,2]
[380940800,1755909104806,-779.34,0.0001452,2]
[380940801,1755909104815,-400.0,0.0001452,2]
[380940802,1755909104824,-495.96,0.0001452,2]
[380940803,1755909104834,-636.7,0.0001452,2]
[380940804,1755909104843,-628.81,0.0001452,2]
[380940805,1755909104852,-519.36871427,0.0001452,2]
[380940806,1755909104862,-400.0,0.0001452,2]
[380940807,1755909104872,-2007.17,0.0001452,2]
[380940808,1755909104882,-941.75,0.0001452,2]
[380940809,1755909104892,-400.0,0.0001452,2]
[380940810,1755909104902,-1107.09,0.0001452,2]
[380940811,1755909104911,-566.3,0.0001452,2]
[380940812,1755909104921,-971.09,0.0001452,2]
[380940813,1755909104931,-585.02,0.0001452,2]
[380940814,1755909104941,-400.0,0.0001452,2]
[380940815,1755909104952,-864.25,0.0001452,2]
[380940816,1755909104962,-400.0,0.0001452,2]
[380940817,1755909104971,-1099.08,0.0001452,2]
[380940818,1755909104981,-676.57,0.0001452,2]
[380940819,1755909104991,-400.0,0.0001452,2]
[380940820,1755909105003,-400.0,0.0001452,2]
[380940821,1755909105013,-400.0,0.0001452,2]
[380940822,1755909105022,-749.92,0.0001452,2]
[380940823,1755909105032,-634.31,0.0001452,2]
[380940824,1755909105043,-894.75,0.0001452,2]
[380940825,1755909105053,-476.98,0.0001452,2]
[380940826,1755909105064,-455.35,0.0001452,2]
[380940827,1755909105077,-1015.51,0.0001452,2]
[380940828,1755909105089,-400.0,0.0001452,2]
[380940829,1755909105100,-634.38,0.0001452,2]
[380940830,1755909105112,-667.33,0.0001452,2]
[380940831,1755909105124,-560.43,0.0001452,2]
[380940832,1755909105134,-440.79,0.0001452,2]
[380940833,1755909105143,-556.68,0.0001452,2]
[380940834,1755909105153,-400.0,0.0001452,2]
[380940835,1755909105163,-811.19,0.0001452,2]
[380940836,1755909105172,-769.3,0.0001452,2]
[380940837,1755909105182,-1376.17,0.0001452,2]
[380940838,1755909105194,-661.11,0.0001452,2]
[380940839,1755909105205,-400.0,0.0001452,2]
[380940840,1755909105215,-400.0,0.0001452,2]
[380940841,1755909105224,-421.79,0.0001452,2]
[380940842,1755909105233,-531.99,0.0001452,2]
[380940843,1755909105244,-913.58,0.0001452,2]
[380940844,1755909105256,-984.19,0.0001452,2]
[380940845,1755909105266,-657.18,0.0001452,2]
[380940846,1755909105277,-490.26,0.0001452,2]
[380940847,1755909105286,-400.0,0.0001452,2]
[380940848,1755909105296,-641.16,0.0001452,2]
[380940849,1755909105306,-472.42,0.0001452,2]
[380940850,1755909105317,-400.0,0.0001452,2]
[380940851,1755909105326,-400.0,0.0001452,2]
[380940852,1755909105336,-884.67,0.0001452,2]
[380940853,1755909105346,-1002.95,0.0001452,2]
[380940854,1755909105356,-400.0,0.0001452,2]
[380940855,1755909105366,-400.0,0.0001452,2]
[380940856,1755909105376,-400.0,0.0001452,2]
[380940857,1755909105386,-436.7,0.0001452,2]
[380940858,1755909105396,-1347.44,0.0001452,2]
[380940859,1755909105406,-1000.0,0.00014521,2]
[380940860,1755909105416,-1000.0,0.00014521,2]
[380940861,1755909105426,-591.41849577,0.00014521,2]
[380940862,1755909105436,-1000.0,0.00014521,2]
[380940863,1755909105446,-1000.0,0.00014521,2]
[380940864,1755909105455,-1000.0,0.00014521,2]
[380940865,1755909105465,-677.46654728,0.00014521,2]
[380940866,1755909105474,-1000.0,0.00014521,2]
[380940867,1755909105483,-1000.0,0.00014521,2]
[380940868,1755909105493,-1000.0,0.00014521,2]
[380940869,1755909105502,-1000.0,0.00014521,2]
[380940870,1755909105512,-1000.0,0.00014521,2]
[380940871,1755909105521,-390.953808,0.00014521,2]
[380940872,1755909105530,-1000.0,0.00014521,2]
[380940873,1755909105539,-1000.0,0.00014521,2]
[380940874,1755909105549,-1000.0,0.00014521,2]
[380940875,1755909105558,-1000.0,0.00014521,2]
[380940876,1755909105567,-1090.65746038,0.00014521,2]
[380940877,1755909105577,-1000.0,0.00014521,2]
[380940878,1755909105586,-1000.0,0.00014521,2]
[380940879,1755909105595,-1000.0,0.00014521,2]
[380940880,1755909105605,-150.0,0.00014521,2]
[380940881,1755909105614,-150.0,0.00014526,2]
[380940882,1755909105623,-150.0,0.00014549,2]
[380940883,1755909105632,-150.0,0.00014549,2]
[380940884,1755909105641,-150.0,0.00014549,2]
[380940885,1755909105651,-150.0,0.00014549,2]
[380940886,1755909105660,-150.0,0.00014549,2]
[380940887,1755909105670,-150.0,0.00014549,2]
[380940888,1755909105679,-150.0,0.00014549,2]
[380940889,1755909105689,-150.0,0.00014549,2]
[380940890,1755909105699,-150.0,0.00014549,2]
[380940891,1755909105708,-1085.0,0.00014551,2]
[380940892,1755909105718,-168.0,0.00014553,2]
[380940893,1755909105727,-151.0,0.00014556,2]
[380940894,1755909105737,-168.0,0.00014569,2]
[380940895,1755909105746,-476.0,0.0001457,2]
[380940896,1755909105756,-150.0,0.00014573,2]
[380940897,1755909105767,-150.0,0.00014584,2]
[380940898,1755909105776,-150.0,0.00014597,2]
[380940899,1755909105786,-150.0,0.000146,2]
[380940900,1755909105795,-150.0,0.000146,2]
[380940901,1755909105804,-150.0,0.00014619,2]
[380940902,1755909105814,-150.0,0.00014619,2]
[380940903,1755909105823,-150.0,0.00014634,2]
[380940904,1755909105834,-150.0,0.00014645,2]
[380940905,1755909105843,-150.0,0.00014651,2]
[380940906,1755909105852,-150.0,0.00014654,2]
[380940907,1755909105862,-150.0,0.00014665,2]
[380940908,1755909105871,-150.0,0.00014677,2]
[380940909,1755909105881,-150.0,0.00014677,2]
[380940910,1755909105891,-168.0,0.00014682,2]
[380940911,1755909105900,-150.0,0.00014689,2]
[380940912,1755909105910,-150.0,0.00014693,2]
[380940913,1755909105919,-150.0,0.00014702,2]
[380940914,1755909105928,-150.0,0.00014702,2]
[380940915,1755909105938,-900.0,0.00014704,2]
[380940916,1755909105948,-900.0,0.00014704,2]
[380940917,1755909105957,-900.0,0.00014704,2]
[380940918,1755909105967,-900.0,0.00014704,2]
[380940919,1755909105977,-900.0,0.00014704,2]
[380940920,1755909105986,-900.0,0.00014704,2]
[380940921,1755909105995,-900.0,0.00014704,2]
[380940922,1755909106005,-900.0,0.00014704,2]
[380940923,1755909106014,-150.0,0.00014712,2]
[380940924,1755909106024,-150.0,0.00014719,2]
[380940925,1755909106034,-150.0,0.00014723,2]
[380940926,1755909106044,-150.0,0.00014725,2]
[380940927,1755909106053,-168.0,0.00014725,2]
[380940928,1755909106063,-900.0,0.00014726,2]
[380940929,1755909106073,-900.0,0.00014726,2]
[380940930,1755909106083,-900.0,0.00014726,2]
[380940931,1755909106092,-900.0,0.00014726,2]
[380940932,1755909106102,-900.0,0.00014726,2]
[380940933,1755909106111,-900.0,0.00014726,2]
[380940934,1755909106121,-900.0,0.00014726,2]
[380940935,1755909106130,-900.0,0.00014726,2]
[380940936,1755909106139,-150.0,0.00014741,2]
[380940937,1755909106149,-150.0,0.00014741,2]
[380940938,1755909106158,-150.0,0.00014741,2]
[380940939,1755909106168,-151.0,0.00014747,2]
[380940940,1755909106182,-150.0,0.00014754,2]
[380940941,1755909106207,-150.0,0.00014758,2]
[380940942,1755909106223,-150.0,0.00014758,2]
[380940943,1755909106245,-150.0,0.00014789,2]
[380940944,1755909106262,-1139.24,0.0001479,2]
[380940945,1755909106280,-150.0,0.00014793,2]
[380940946,1755909106298,-150.0,0.00014793,2]
[380940947,1755909106318,-424.37490696,0.00014794,2]
[380940948,1755909106336,-150.0,0.00014794,2]
[380940949,1755909106355,-500.0,0.00014794,2]
[380940950,1755909106374,-729.0,0.00014794,2]
[380940951,1755909106395,-150.0,0.00014794,2]
[380940952,1755909106409,-500.0,0.00014794,2]
[380940953,1755909106429,-150.0,0.00014794,2]
[380940954,1755909106442,-493.44640854,0.00014794,2]
[380940955,1755909106460,-500.0,0.00014794,2]
[380940956,1755909106474,-765.0,0.00014794,2]
[380940957,1755909106489,-500.0,0.00014794,2]
[380940958,1755909106505,-500.0,0.00014794,2]
[380940959,1755909106521,-150.0,0.00014794,2]
[380940960,1755909106535,-169.45713969,0.00014794,2]
[380940961,1755909106551,-400.0,0.00014794,2]
[380940962,1755909106566,-400.0,0.00014794,2]
[380940963,1755909106582,-603.48,0.00014794,2]
[380940964,1755909106597,-612.02,0.00014794,2]
[380940965,1755909106613,-448.19,0.00014794,2]
[380940966,1755909106628,-400.0,0.00014794,2]
[380940967,1755909106643,-400.0,0.00014794,2]
[380940968,1755909106659,-153.492172,0.00014794,2]
[380940969,1755909106674,-431.57,0.00014794,2]
[380940970,1755909106689,-400.0,0.00014794,2]
[380940971,1755909106705,-400.0,0.00014794,2]
[380940972,1755909106720,-434.66,0.00014794,2]
[380940973,1755909106735,-649.59,0.00014794,2]
[380940974,1755909106750,-681.46,0.00014794,2]
[380940975,1755909106766,-472.35,0.00014794,2]
[380940976,1755909106780,-400.0,0.00014794,2]
[380940977,1755909106796,-400.0,0.00014794,2]
[380940978,1755909106812,-400.0,0.00014794,2]
[380940979,1755909106828,-409.04,0.00014794,2]
[380940980,1755909106843,-235.795947,0.00014794,2]
[380940981,1755909106858,-534.48,0.00014794,2]
[380940982,1755909106873,-546.13,0.00014794,2]
[380940983,1755909106888,-635.82,0.00014794,2]
[380940984,1755909106903,-476.99,0.00014794,2]
[380940985,1755909106919,-400.0,0.00014794,2]
[380940986,1755909106934,-507.78,0.00014794,2]
[380940987,1755909106949,-400.0,0.00014794,2]
[380940988,1755909106964,-400.0,0.00014794,2]
[380940989,1755909106979,-400.0,0.00014794,2]
[380940990,1755909106994,-400.0,0.00014794,2]
[380940991,1755909107009,-744.95,0.00014794,2]
[380940992,1755909107032,-590.74,0.00014794,2]
[380940993,1755909107050,-400.0,0.00014794,2]
[380940994,1755909107065,-575.25,0.00014794,2]
[380940995,1755909107080,-400.0,0.00014794,2]
[380940996,1755909107097,-990.54657,0.00014794,2]
[380940997,1755909107113,-400.0,0.00014794,2]
[380940998,1755909107127,-400.0,0.00014794,2]
[380940999,1755909107143,-400.0,0.00014794,2]
[380941000,1755909107160,-400.0,0.00014794,2]
[380941001,1755909107176,-400.0,0.00014794,2]
[380941002,1755909107192,-422.20399899,0.00014794,2]
[380941003,1755909107208,-400.0,0.00014794,2]
[380941004,1755909107222,-400.0,0.00014794,2]
[380941005,1755909107239,-400.0,0.00014794,2]
[380941006,1755909107254,-400.0,0.00014794,2]
[380941007,1755909107269,-477.98,0.00014794,2]
[380941008,1755909107284,-410.44,0.00014794,2]
[380941009,1755909107299,-400.0,0.00014794,2]
[380941010,1755909107314,-692.3,0.00014794,2]
[380941011,1755909107330,-600.48,0.00014794,2]
[380941012,1755909107345,-400.0,0.00014794,2]
[380941013,1755909107361,-402.6,0.00014794,2]